[Event "Titled Tuesday Blitz January 03 Late 2023"]
[White "Blanco Acevedo, Cristobal Jose"]
[Black "Godzwon, Iwo"]
[WhiteFideId "3900525"]
[BlackFideId "21802483"]
[WhiteElo "2310"]
[BlackElo "2394"]
[Result "0-1"]
[Round "04"]
[TimeControl "180+2"]
[Date "2023.01.03"]
[WhiteClock "0:00:16"]
[BlackClock "0:00:20"]

1. e4 {[%clk 0:03:00]}  c5 {[%clk 0:02:47]} 2. Nf3 {[%clk 0:03:00]}  Nc6 {[%clk 0:02:48]} 3. d4 {[%clk 0:02:59]}  cxd4 {[%clk 0:02:49]} 4. Nxd4 {[%clk 0:02:59]}  Qb6 {[%clk 0:02:46]} 5. Nb3 {[%clk 0:02:58]}  Nf6 {[%clk 0:02:46]} 6. Nc3 {[%clk 0:02:57]}  e6 {[%clk 0:02:46]} 7. Be3 {[%clk 0:02:56]}  Qc7 {[%clk 0:02:47]} 8. Bd3 {[%clk 0:02:48]}  a6 {[%clk 0:02:46]} 9. f4 {[%clk 0:02:47]}  Bb4 {[%clk 0:02:42]} 10. O-O {[%clk 0:02:46]}  d5 {[%clk 0:02:40]} 11. e5 {[%clk 0:02:26]}  Nd7 {[%clk 0:02:35]} 12. Ne2 {[%clk 0:02:22]}  g6 {[%clk 0:02:33]} 13. c3 {[%clk 0:02:20]}  Be7 {[%clk 0:02:32]} 14. Ned4 {[%clk 0:02:17]}  b6 {[%clk 0:02:20]} 15. a4 {[%clk 0:02:14]}  Bb7 {[%clk 0:02:20]} 16. Qe2 {[%clk 0:02:14]}  Nc5 {[%clk 0:02:19]} 17. Bc2 {[%clk 0:02:05]}  Nxb3 {[%clk 0:02:15]} 18. Nxb3 {[%clk 0:02:02]}  Na5 {[%clk 0:02:06]} 19. Nxa5 {[%clk 0:01:43]}  bxa5 {[%clk 0:02:06]} 20. Qf2 {[%clk 0:01:42]}  Rc8 {[%clk 0:02:07]} 21. Bd3 {[%clk 0:01:37]}  Bc5 {[%clk 0:02:06]} 22. Bd4 {[%clk 0:01:36]}  Qb6 {[%clk 0:02:04]} 23. g4 {[%clk 0:01:18]}  h5 {[%clk 0:01:56]} 24. f5 {[%clk 0:01:17]}  gxf5 {[%clk 0:01:42]} 25. gxf5 {[%clk 0:01:16]}  Rg8+ {[%clk 0:01:40]} 26. Kh1 {[%clk 0:01:16]}  Bxd4 {[%clk 0:01:41]} 27. cxd4 {[%clk 0:01:15]}  Rc7 {[%clk 0:01:36]} 28. fxe6 {[%clk 0:01:07]}  Qxe6 {[%clk 0:01:36]} 29. Bf5 {[%clk 0:01:01]}  Qh6 {[%clk 0:01:36]} 30. Rae1 {[%clk 0:00:56]}  Re7 {[%clk 0:01:24]} 31. e6 {[%clk 0:00:54]}  fxe6 {[%clk 0:01:17]} 32. Bxe6 {[%clk 0:00:51]}  Rf8 {[%clk 0:01:17]} 33. Bf7+ {[%clk 0:00:30]}  Kd8 {[%clk 0:01:12]} 34. Qh4 {[%clk 0:00:20]}  Qd6 {[%clk 0:01:09]} 35. Qxh5 {[%clk 0:00:15]}  Rfxf7 {[%clk 0:01:02]} 36. Rc1 {[%clk 0:00:13]}  Rxf1+ {[%clk 0:01:01]} 37. Rxf1 {[%clk 0:00:14]}  Qe6 {[%clk 0:01:00]} 38. Rf8+ {[%clk 0:00:13]}  Kd7 {[%clk 0:00:58]} 39. Qh8 {[%clk 0:00:12]}  Qe4+ {[%clk 0:00:52]} 40. Kg1 {[%clk 0:00:12]}  Qg6+ {[%clk 0:00:50]} 41. Kf2 {[%clk 0:00:12]}  Rf7+ {[%clk 0:00:29]} 42. Ke3 {[%clk 0:00:12]}  Qe6+ {[%clk 0:00:27]} 43. Kd2 {[%clk 0:00:11]}  Qf5 {[%clk 0:00:21]} 44. Rxf7+ {[%clk 0:00:10]}  Qxf7 {[%clk 0:00:22]} 45. Qe5 {[%clk 0:00:10]}  Qh7 {[%clk 0:00:21]} 46. Kc3 {[%clk 0:00:09]}  Bc6 {[%clk 0:00:19]} 47. Kb3 {[%clk 0:00:09]}  Qd3+ {[%clk 0:00:19]} 48. Ka2 {[%clk 0:00:09]}  Qc4+ {[%clk 0:00:19]} 49. b3 {[%clk 0:00:09]}  Qc2+ {[%clk 0:00:19]} 50. Ka3 {[%clk 0:00:10]}  Qe4 {[%clk 0:00:20]} 51. Qh8 {[%clk 0:00:06]}  Qe7+ {[%clk 0:00:21]} 52. Ka2 {[%clk 0:00:06]}  Kc7 {[%clk 0:00:19]} 53. h4 {[%clk 0:00:06]}  Bd7 {[%clk 0:00:18]} 54. h5 {[%clk 0:00:07]}  Bf5 {[%clk 0:00:18]} 55. h6 {[%clk 0:00:06]}  Be4 {[%clk 0:00:19]} 56. Qg7 {[%clk 0:00:06]}  Qxg7 {[%clk 0:00:19]} 57. hxg7 {[%clk 0:00:06]}  Bh7 {[%clk 0:00:19]} 58. Ka3 {[%clk 0:00:07]}  Kc6 {[%clk 0:00:20]} 59. b4 {[%clk 0:00:08]}  axb4+ {[%clk 0:00:20]} 60. Kxb4 {[%clk 0:00:09]}  Kb6 {[%clk 0:00:21]} 61. a5+ {[%clk 0:00:09]}  Kc6 {[%clk 0:00:21]} 62. Kc3 {[%clk 0:00:09]}  Kb5 {[%clk 0:00:21]} 63. Kd2 {[%clk 0:00:09]}  Kxa5 {[%clk 0:00:21]} 64. Ke3 {[%clk 0:00:10]}  Kb4 {[%clk 0:00:22]} 65. Kf4 {[%clk 0:00:11]}  a5 {[%clk 0:00:22]} 66. Ke5 {[%clk 0:00:12]}  a4 {[%clk 0:00:22]} 67. Kxd5 {[%clk 0:00:12]}  a3 {[%clk 0:00:22]} 68. Kc6 {[%clk 0:00:13]}  a2 {[%clk 0:00:23]} 69. d5 {[%clk 0:00:14]}  a1=Q {[%clk 0:00:23]} 70. d6 {[%clk 0:00:14]}  Qxg7 {[%clk 0:00:23]} 71. d7 {[%clk 0:00:15]}  Be4+ {[%clk 0:00:21]} 72. Kd6 {[%clk 0:00:15]}  Qd4+ {[%clk 0:00:21]} 73. Kc7 {[%clk 0:00:15]}  Qc5+ {[%clk 0:00:21]} 74. Kd8 {[%clk 0:00:15]}  Bf5 {[%clk 0:00:20]} 75. Ke8 {[%clk 0:00:16]}  Qe5+ {[%clk 0:00:20]} 0-1


[Site "https://www.chess.com"]

[Event "Titled Tuesday Blitz January 03 Late 2023"]
[White "Jaracz, Pawel"]
[Black "Pesotskiy, Mikhail"]
[WhiteFideId "1102222"]
[BlackFideId "34164453"]
[WhiteElo "2467"]
[BlackElo "2153"]
[Result "1-0"]
[Round "04"]
[TimeControl "180+2"]
[Date "2023.01.03"]
[WhiteClock "0:00:07"]
[BlackClock "0:00:11"]

1. Nf3 {[%clk 0:03:00]}  Nf6 {[%clk 0:02:59]} 2. d4 {[%clk 0:03:00]}  e6 {[%clk 0:02:58]} 3. c4 {[%clk 0:02:59]}  Bb4+ {[%clk 0:02:58]} 4. Bd2 {[%clk 0:02:59]}  a5 {[%clk 0:02:59]} 5. Nc3 {[%clk 0:02:56]}  b6 {[%clk 0:02:59]} 6. Bg5 {[%clk 0:02:55]}  Bb7 {[%clk 0:02:57]} 7. Qc2 {[%clk 0:02:56]}  h6 {[%clk 0:02:55]} 8. Bh4 {[%clk 0:02:55]}  d6 {[%clk 0:02:54]} 9. Nd2 {[%clk 0:02:53]}  Nbd7 {[%clk 0:02:49]} 10. f3 {[%clk 0:02:52]}  O-O {[%clk 0:02:40]} 11. a3 {[%clk 0:02:47]}  Bxc3 {[%clk 0:02:39]} 12. bxc3 {[%clk 0:02:48]}  e5 {[%clk 0:01:45]} 13. e4 {[%clk 0:02:45]}  Qe8 {[%clk 0:01:40]} 14. Bd3 {[%clk 0:02:41]}  Nh5 {[%clk 0:01:40]} 15. Nf1 {[%clk 0:02:29]}  Nf4 {[%clk 0:01:39]} 16. Ne3 {[%clk 0:02:29]}  f5 {[%clk 0:01:17]} 17. Nxf5 {[%clk 0:02:21]}  exd4 {[%clk 0:01:11]} 18. Nxd4 {[%clk 0:01:58]}  Nc5 {[%clk 0:01:11]} 19. Bf1 {[%clk 0:01:43]}  Nxe4 {[%clk 0:01:06]} 20. O-O-O {[%clk 0:01:43]}  Nc5 {[%clk 0:00:37]} 21. Re1 {[%clk 0:01:42]}  Qg6 {[%clk 0:00:29]} 22. Qxg6 {[%clk 0:01:29]}  Nxg6 {[%clk 0:00:29]} 23. Bg3 {[%clk 0:01:27]}  Rae8 {[%clk 0:00:27]} 24. Be2 {[%clk 0:01:19]}  Nf4 {[%clk 0:00:25]} 25. Bxf4 {[%clk 0:01:18]}  Rxf4 {[%clk 0:00:26]} 26. Kd2 {[%clk 0:01:08]}  Rf7 {[%clk 0:00:20]} 27. Bd1 {[%clk 0:01:07]}  Rfe7 {[%clk 0:00:20]} 28. Rxe7 {[%clk 0:01:07]}  Rxe7 {[%clk 0:00:21]} 29. Bc2 {[%clk 0:01:02]}  Ba6 {[%clk 0:00:21]} 30. Nb5 {[%clk 0:01:02]}  Kf7 {[%clk 0:00:20]} 31. h4 {[%clk 0:01:01]}  Kf6 {[%clk 0:00:21]} 32. h5 {[%clk 0:01:01]}  Rd7 {[%clk 0:00:15]} 33. Rh4 {[%clk 0:00:40]}  d5 {[%clk 0:00:15]} 34. Rf4+ {[%clk 0:00:34]}  Ke7 {[%clk 0:00:15]} 35. Nd4 {[%clk 0:00:28]}  Bxc4 {[%clk 0:00:13]} 36. Bg6 {[%clk 0:00:22]}  Ne6 {[%clk 0:00:13]} 37. Rf7+ {[%clk 0:00:21]}  Kd6 {[%clk 0:00:14]} 38. Nf5+ {[%clk 0:00:21]}  Kc6 {[%clk 0:00:13]} 39. Ne7+ {[%clk 0:00:17]}  Kd6 {[%clk 0:00:13]} 40. Nc8+ {[%clk 0:00:18]}  Kc6 {[%clk 0:00:13]} 41. Na7+ {[%clk 0:00:16]}  Kd6 {[%clk 0:00:14]} 42. Nc8+ {[%clk 0:00:15]}  Kc6 {[%clk 0:00:14]} 43. Ne7+ {[%clk 0:00:15]}  Kd6 {[%clk 0:00:14]} 44. Nf5+ {[%clk 0:00:15]}  Kc6 {[%clk 0:00:15]} 45. g4 {[%clk 0:00:09]}  Rxf7 {[%clk 0:00:14]} 46. Bxf7 {[%clk 0:00:09]}  Kd7 {[%clk 0:00:12]} 47. Bxe6+ {[%clk 0:00:09]}  Kxe6 {[%clk 0:00:13]} 48. Nxg7+ {[%clk 0:00:09]}  Kf6 {[%clk 0:00:13]} 49. Nf5 {[%clk 0:00:09]}  Kg5 {[%clk 0:00:14]} 50. Ke3 {[%clk 0:00:09]}  c5 {[%clk 0:00:13]} 51. Kf2 {[%clk 0:00:06]}  Bd3 {[%clk 0:00:11]} 52. Ne3 {[%clk 0:00:06]}  d4 {[%clk 0:00:11]} 53. cxd4 {[%clk 0:00:06]}  cxd4 {[%clk 0:00:11]} 54. Nd5 {[%clk 0:00:07]}  b5 {[%clk 0:00:11]} 55. Kg3 {[%clk 0:00:07]} 1-0


[Site "https://www.chess.com"]

[Event "Titled Tuesday Blitz January 03 Late 2023"]
[White "Przybylski, Wojciech"]
[Black "Wieczorek, Oskar"]
[WhiteFideId "1117599"]
[BlackFideId "1133950"]
[WhiteElo "2321"]
[BlackElo "2512"]
[Result "1-0"]
[Round "04"]
[TimeControl "180+2"]
[Date "2023.01.03"]
[WhiteClock "0:00:12"]
[BlackClock "0:00:01"]

1. e4 {[%clk 0:03:00]}  c5 {[%clk 0:02:56]} 2. Nf3 {[%clk 0:03:00]}  e6 {[%clk 0:02:56]} 3. b3 {[%clk 0:02:59]}  a6 {[%clk 0:02:54]} 4. Bb2 {[%clk 0:02:59]}  d5 {[%clk 0:02:55]} 5. exd5 {[%clk 0:02:58]}  exd5 {[%clk 0:02:55]} 6. d4 {[%clk 0:02:58]}  Nf6 {[%clk 0:02:53]} 7. Be2 {[%clk 0:02:56]}  Nc6 {[%clk 0:02:51]} 8. O-O {[%clk 0:02:56]}  cxd4 {[%clk 0:02:39]} 9. Nxd4 {[%clk 0:02:55]}  Bd6 {[%clk 0:02:38]} 10. Bf3 {[%clk 0:02:51]}  O-O {[%clk 0:02:37]} 11. h3 {[%clk 0:02:50]}  Ne5 {[%clk 0:02:37]} 12. Nd2 {[%clk 0:02:44]}  Re8 {[%clk 0:02:37]} 13. Re1 {[%clk 0:02:39]}  Bd7 {[%clk 0:02:17]} 14. a4 {[%clk 0:02:33]}  Rc8 {[%clk 0:02:15]} 15. Nf1 {[%clk 0:02:25]}  Bc6 {[%clk 0:01:23]} 16. Ne3 {[%clk 0:02:24]}  Nxf3+ {[%clk 0:01:23]} 17. Qxf3 {[%clk 0:02:23]}  Ne4 {[%clk 0:01:21]} 18. Ndf5 {[%clk 0:02:18]}  Bf8 {[%clk 0:01:14]} 19. Ng4 {[%clk 0:01:43]}  Qg5 {[%clk 0:00:49]} 20. Nfh6+ {[%clk 0:00:50]}  gxh6 {[%clk 0:00:41]} 21. Rxe4 {[%clk 0:00:50]}  Bg7 {[%clk 0:00:08]} 22. Rxe8+ {[%clk 0:00:43]}  Rxe8 {[%clk 0:00:09]} 23. Nf6+ {[%clk 0:00:22]}  Bxf6 {[%clk 0:00:09]} 24. Bxf6 {[%clk 0:00:22]}  Qg6 {[%clk 0:00:07]} 25. Bd4 {[%clk 0:00:19]}  Re4 {[%clk 0:00:02]} 26. c3 {[%clk 0:00:19]}  f5 {[%clk 0:00:02]} 27. b4 {[%clk 0:00:18]}  h5 {[%clk 0:00:02]} 28. b5 {[%clk 0:00:18]}  Bd7 {[%clk 0:00:01]} 29. bxa6 {[%clk 0:00:18]}  bxa6 {[%clk 0:00:02]} 30. Rb1 {[%clk 0:00:18]}  Re8 {[%clk 0:00:02]} 31. Rb7 {[%clk 0:00:17]}  Qd6 {[%clk 0:00:01]} 32. g3 {[%clk 0:00:14]}  h4 {[%clk 0:00:01]} 33. Qh5 {[%clk 0:00:12]} 1-0


[Site "https://www.chess.com"]

[Event "Titled Tuesday Blitz January 03 Late 2023"]
[White "Strahov, Andrej"]
[Black "Garcia Ramos, Daniel"]
[WhiteFideId "4165489"]
[BlackFideId "32010311"]
[WhiteElo "2398"]
[BlackElo "2442"]
[Result "0-1"]
[Round "04"]
[TimeControl "180+2"]
[Date "2023.01.03"]
[WhiteClock "0:00:06"]
[BlackClock "0:00:09"]

1. e4 {[%clk 0:03:00]}  c6 {[%clk 0:03:00]} 2. d4 {[%clk 0:03:00]}  d5 {[%clk 0:03:00]} 3. e5 {[%clk 0:02:57]}  Bf5 {[%clk 0:03:00]} 4. Be3 {[%clk 0:02:57]}  Nd7 {[%clk 0:02:56]} 5. Nd2 {[%clk 0:02:57]}  e6 {[%clk 0:02:54]} 6. Be2 {[%clk 0:02:58]}  Ne7 {[%clk 0:02:46]} 7. Ngf3 {[%clk 0:02:57]}  h6 {[%clk 0:02:45]} 8. O-O {[%clk 0:02:56]}  Bh7 {[%clk 0:02:43]} 9. g4 {[%clk 0:02:41]}  c5 {[%clk 0:02:36]} 10. c4 {[%clk 0:02:34]}  cxd4 {[%clk 0:02:32]} 11. Bxd4 {[%clk 0:02:31]}  Nc6 {[%clk 0:02:24]} 12. cxd5 {[%clk 0:02:29]}  exd5 {[%clk 0:02:20]} 13. Re1 {[%clk 0:02:18]}  Be7 {[%clk 0:02:15]} 14. e6 {[%clk 0:02:16]}  fxe6 {[%clk 0:02:11]} 15. Bxg7 {[%clk 0:02:16]}  Rg8 {[%clk 0:02:09]} 16. Bxh6 {[%clk 0:02:17]}  Rxg4+ {[%clk 0:02:04]} 17. Kh1 {[%clk 0:02:17]}  Nf6 {[%clk 0:02:02]} 18. Ng5 {[%clk 0:01:57]}  Rh4 {[%clk 0:01:46]} 19. Nxh7 {[%clk 0:01:45]}  Rxh6 {[%clk 0:01:40]} 20. Nxf6+ {[%clk 0:01:44]}  Bxf6 {[%clk 0:01:29]} 21. Bh5+ {[%clk 0:01:39]}  Ke7 {[%clk 0:01:19]} 22. Bg4 {[%clk 0:01:30]}  Be5 {[%clk 0:01:15]} 23. Nf3 {[%clk 0:01:26]}  Qh8 {[%clk 0:01:13]} 24. Kg1 {[%clk 0:01:05]}  Rg8 {[%clk 0:01:08]} 25. Kf1 {[%clk 0:01:05]}  Rxg4 {[%clk 0:00:56]} 26. Nxe5 {[%clk 0:01:04]}  Nxe5 {[%clk 0:00:55]} 27. Rxe5 {[%clk 0:01:04]}  Qg7 {[%clk 0:00:42]} 28. Re1 {[%clk 0:00:55]}  Rg1+ {[%clk 0:00:26]} 29. Ke2 {[%clk 0:00:55]}  Qe5+ {[%clk 0:00:26]} 30. Kd3 {[%clk 0:00:20]}  Rh3+ {[%clk 0:00:25]} 31. Kc2 {[%clk 0:00:19]}  Qf5+ {[%clk 0:00:24]} 32. Kc1 {[%clk 0:00:17]}  Qf4+ {[%clk 0:00:21]} 33. Kc2 {[%clk 0:00:15]}  Qxf2+ {[%clk 0:00:20]} 34. Qd2 {[%clk 0:00:15]}  Rxh2 {[%clk 0:00:11]} 35. Qxf2 {[%clk 0:00:15]}  Rxf2+ {[%clk 0:00:12]} 36. Kc3 {[%clk 0:00:15]}  Rg3+ {[%clk 0:00:11]} 37. Kd4 {[%clk 0:00:14]}  Rf4+ {[%clk 0:00:11]} 38. Ke5 {[%clk 0:00:12]}  Rgg4 {[%clk 0:00:10]} 39. Rf1 {[%clk 0:00:06]}  Re4# {[%clk 0:00:09]} 0-1


[Site "https://www.chess.com"]

[Event "Titled Tuesday Blitz January 03 Late 2023"]
[White "Abrahamyan, Tatev"]
[Black "Estrada Nieto, Julian"]
[WhiteFideId "13301918"]
[BlackFideId "5101018"]
[WhiteElo "2294"]
[BlackElo "2215"]
[Result "1-0"]
[Round "04"]
[TimeControl "180+2"]
[Date "2023.01.03"]
[WhiteClock "0:00:42"]
[BlackClock "0:00:09"]

1. e4 {[%clk 0:02:50]}  e5 {[%clk 0:02:59]} 2. Nf3 {[%clk 0:02:50]}  Nc6 {[%clk 0:03:00]} 3. Bc4 {[%clk 0:02:50]}  Bc5 {[%clk 0:02:59]} 4. O-O {[%clk 0:02:49]}  d6 {[%clk 0:02:58]} 5. c3 {[%clk 0:02:49]}  Nf6 {[%clk 0:02:59]} 6. d3 {[%clk 0:02:49]}  a6 {[%clk 0:02:58]} 7. Bb3 {[%clk 0:02:49]}  Ba7 {[%clk 0:02:59]} 8. Nbd2 {[%clk 0:02:49]}  O-O {[%clk 0:02:59]} 9. h3 {[%clk 0:02:49]}  h6 {[%clk 0:02:58]} 10. Re1 {[%clk 0:02:50]}  Re8 {[%clk 0:02:59]} 11. Nf1 {[%clk 0:02:50]}  Be6 {[%clk 0:02:59]} 12. Bc2 {[%clk 0:02:50]}  d5 {[%clk 0:02:59]} 13. Qe2 {[%clk 0:02:50]}  b5 {[%clk 0:02:54]} 14. Ng3 {[%clk 0:02:46]}  Qd7 {[%clk 0:02:47]} 15. Nh4 {[%clk 0:02:19]}  Bc5 {[%clk 0:02:30]} 16. Qf3 {[%clk 0:02:14]}  Nh7 {[%clk 0:02:24]} 17. Nhf5 {[%clk 0:02:07]}  Ne7 {[%clk 0:02:06]} 18. Bb3 {[%clk 0:01:23]}  dxe4 {[%clk 0:01:59]} 19. dxe4 {[%clk 0:01:18]}  Nxf5 {[%clk 0:01:52]} 20. Nxf5 {[%clk 0:01:14]}  Bxb3 {[%clk 0:01:52]} 21. axb3 {[%clk 0:01:13]}  Re6 {[%clk 0:01:48]} 22. Qg4 {[%clk 0:01:06]}  Bf8 {[%clk 0:01:27]} 23. Nxh6+ {[%clk 0:01:04]}  Kh8 {[%clk 0:01:24]} 24. Rd1 {[%clk 0:00:59]}  Qe8 {[%clk 0:01:11]} 25. Nf5 {[%clk 0:00:55]}  Rg6 {[%clk 0:01:10]} 26. Qf3 {[%clk 0:00:53]}  Rd8 {[%clk 0:01:05]} 27. Be3 {[%clk 0:00:51]}  Rd7 {[%clk 0:00:49]} 28. Rxd7 {[%clk 0:00:49]}  Qxd7 {[%clk 0:00:49]} 29. Rd1 {[%clk 0:00:49]}  Qe6 {[%clk 0:00:47]} 30. Rd8 {[%clk 0:00:47]}  Qxb3 {[%clk 0:00:42]} 31. Bc5 {[%clk 0:00:44]}  Kg8 {[%clk 0:00:11]} 32. Ne7+ {[%clk 0:00:42]}  Kh8 {[%clk 0:00:09]} 33. Nxg6+ {[%clk 0:00:42]} 1-0


[Site "https://www.chess.com"]

[Event "Titled Tuesday Blitz January 03 Late 2023"]
[White "Hsu, Li Yang"]
[Black "Sos Andreu, Eric"]
[WhiteFideId "5800080"]
[BlackFideId "22247017"]
[WhiteElo "2427"]
[BlackElo "2352"]
[Result "0-1"]
[Round "04"]
[TimeControl "180+2"]
[Date "2023.01.03"]
[WhiteClock "0:00:05"]
[BlackClock "0:00:44"]

1. Nf3 {[%clk 0:03:00]}  Nf6 {[%clk 0:02:57]} 2. g3 {[%clk 0:03:00]}  d5 {[%clk 0:02:57]} 3. Bg2 {[%clk 0:03:01]}  Bg4 {[%clk 0:02:57]} 4. O-O {[%clk 0:03:02]}  Nbd7 {[%clk 0:02:57]} 5. d4 {[%clk 0:03:00]}  e6 {[%clk 0:02:57]} 6. Nbd2 {[%clk 0:03:00]}  Be7 {[%clk 0:02:57]} 7. Re1 {[%clk 0:03:00]}  O-O {[%clk 0:02:55]} 8. e4 {[%clk 0:02:59]}  dxe4 {[%clk 0:02:56]} 9. Nxe4 {[%clk 0:03:00]}  Nxe4 {[%clk 0:02:56]} 10. Rxe4 {[%clk 0:03:01]}  Bf5 {[%clk 0:02:56]} 11. Re1 {[%clk 0:03:01]}  c6 {[%clk 0:02:57]} 12. c3 {[%clk 0:03:00]}  a5 {[%clk 0:02:55]} 13. Qb3 {[%clk 0:02:56]}  Qb6 {[%clk 0:02:55]} 14. Nd2 {[%clk 0:02:52]}  a4 {[%clk 0:02:51]} 15. Qd1 {[%clk 0:02:49]}  Nf6 {[%clk 0:02:41]} 16. Nc4 {[%clk 0:02:48]}  Qd8 {[%clk 0:02:41]} 17. Bf4 {[%clk 0:02:38]}  Nd5 {[%clk 0:02:41]} 18. Bd2 {[%clk 0:02:36]}  c5 {[%clk 0:02:29]} 19. dxc5 {[%clk 0:02:33]}  Bxc5 {[%clk 0:02:30]} 20. Ne3 {[%clk 0:02:28]}  Nxe3 {[%clk 0:02:27]} 21. Bxe3 {[%clk 0:02:28]}  Bxe3 {[%clk 0:02:25]} 22. Rxe3 {[%clk 0:02:27]}  Qb6 {[%clk 0:02:24]} 23. Qe2 {[%clk 0:01:57]}  Ra5 {[%clk 0:02:19]} 24. c4 {[%clk 0:01:43]}  h6 {[%clk 0:02:16]} 25. h3 {[%clk 0:01:43]}  Rd8 {[%clk 0:02:14]} 26. Rc1 {[%clk 0:01:38]}  Qb4 {[%clk 0:02:09]} 27. Rec3 {[%clk 0:01:32]}  b6 {[%clk 0:01:54]} 28. Kh2 {[%clk 0:01:23]}  Rc5 {[%clk 0:01:52]} 29. a3 {[%clk 0:01:15]}  Qa5 {[%clk 0:01:51]} 30. b4 {[%clk 0:01:07]}  axb3 {[%clk 0:01:52]} 31. Rxb3 {[%clk 0:01:08]}  Rdc8 {[%clk 0:01:47]} 32. Qb2 {[%clk 0:01:04]}  Rxc4 {[%clk 0:01:39]} 33. Rxc4 {[%clk 0:01:05]}  Rxc4 {[%clk 0:01:39]} 34. Rxb6 {[%clk 0:01:04]}  Rc2 {[%clk 0:01:37]} 35. Rb8+ {[%clk 0:00:56]}  Kh7 {[%clk 0:01:37]} 36. Qd4 {[%clk 0:00:33]}  Qe1 {[%clk 0:01:31]} 37. g4 {[%clk 0:00:26]}  Rd2 {[%clk 0:01:07]} 38. Qf4 {[%clk 0:00:11]}  Rxf2 {[%clk 0:01:01]} 39. Qg3 {[%clk 0:00:06]}  Be4 {[%clk 0:00:54]} 40. Rb2 {[%clk 0:00:06]}  Rxb2 {[%clk 0:00:44]} 41. Qxe1 {[%clk 0:00:06]}  Rxg2+ {[%clk 0:00:44]} 42. Kh1 {[%clk 0:00:05]}  Re2+ {[%clk 0:00:44]} 0-1


[Site "https://www.chess.com"]

[Event "Titled Tuesday Blitz January 03 Late 2023"]
[White "Ortega Ruiz, Jose Miguel"]
[Black "Popilski, Gil"]
[WhiteFideId "2209713"]
[BlackFideId "2809060"]
[WhiteElo "2351"]
[BlackElo "2443"]
[Result "0-1"]
[Round "04"]
[TimeControl "180+2"]
[Date "2023.01.03"]
[WhiteClock "0:01:13"]
[BlackClock "0:00:43"]

1. Nf3 {[%clk 0:03:00]}  d5 {[%clk 0:02:59]} 2. g3 {[%clk 0:02:59]}  Nf6 {[%clk 0:02:57]} 3. Bg2 {[%clk 0:03:00]}  g6 {[%clk 0:02:56]} 4. O-O {[%clk 0:03:00]}  Bg7 {[%clk 0:02:56]} 5. d4 {[%clk 0:03:01]}  O-O {[%clk 0:02:56]} 6. c4 {[%clk 0:03:01]}  c6 {[%clk 0:02:55]} 7. b3 {[%clk 0:02:59]}  a5 {[%clk 0:02:53]} 8. Bb2 {[%clk 0:02:57]}  a4 {[%clk 0:02:51]} 9. bxa4 {[%clk 0:02:55]}  Nbd7 {[%clk 0:02:45]} 10. Ne5 {[%clk 0:02:53]}  Nb6 {[%clk 0:02:41]} 11. Nc3 {[%clk 0:02:44]}  dxc4 {[%clk 0:02:34]} 12. Rb1 {[%clk 0:02:39]}  Nfd5 {[%clk 0:02:32]} 13. a5 {[%clk 0:02:37]}  Rxa5 {[%clk 0:02:28]} 14. e4 {[%clk 0:02:35]}  Nxc3 {[%clk 0:02:26]} 15. Bxc3 {[%clk 0:02:35]}  Rxa2 {[%clk 0:02:25]} 16. Bb4 {[%clk 0:02:19]}  Na4 {[%clk 0:02:02]} 17. Ra1 {[%clk 0:02:12]}  Nb2 {[%clk 0:01:46]} 18. Qc2 {[%clk 0:02:10]}  Rxa1 {[%clk 0:01:44]} 19. Rxa1 {[%clk 0:02:11]}  Qxd4 {[%clk 0:01:06]} 20. Bc3 {[%clk 0:02:10]}  Qxe5 {[%clk 0:01:05]} 21. Bxe5 {[%clk 0:02:05]}  Bxe5 {[%clk 0:01:06]} 22. Bf1 {[%clk 0:02:03]}  b5 {[%clk 0:01:04]} 23. Qd2 {[%clk 0:01:53]}  c3 {[%clk 0:01:01]} 24. Qc2 {[%clk 0:01:47]}  Be6 {[%clk 0:00:59]} 25. Kg2 {[%clk 0:01:38]}  b4 {[%clk 0:00:57]} 26. f4 {[%clk 0:01:29]}  Bd4 {[%clk 0:00:54]} 27. Qc1 {[%clk 0:01:27]}  b3 {[%clk 0:00:51]} 28. Qe1 {[%clk 0:01:26]}  c5 {[%clk 0:00:49]} 29. Bb5 {[%clk 0:01:18]}  c4 {[%clk 0:00:46]} 30. Rc1 {[%clk 0:01:15]}  Nd3 {[%clk 0:00:45]} 31. Qd1 {[%clk 0:01:14]}  c2 {[%clk 0:00:43]} 32. Rxc2 {[%clk 0:01:13]}  bxc2 {[%clk 0:00:43]} 0-1


[Site "https://www.chess.com"]

[Event "Titled Tuesday Blitz January 03 Late 2023"]
[White "aidenzhouu"]
[Black "Gascon Del Nogal, Jose Rafael"]
[BlackFideId "3902463"]
[WhiteElo "2395"]
[BlackElo "2459"]
[Result "0-1"]
[Round "04"]
[TimeControl "180+2"]
[Date "2023.01.03"]
[WhiteClock "0:00:09"]
[BlackClock "0:00:18"]

1. d4 {[%clk 0:03:00]}  Nf6 {[%clk 0:02:58]} 2. c4 {[%clk 0:03:01]}  g6 {[%clk 0:02:59]} 3. Nc3 {[%clk 0:03:01]}  Bg7 {[%clk 0:02:59]} 4. e4 {[%clk 0:03:01]}  d6 {[%clk 0:03:00]} 5. Nf3 {[%clk 0:03:02]}  O-O {[%clk 0:02:59]} 6. Be2 {[%clk 0:03:02]}  e5 {[%clk 0:03:00]} 7. dxe5 {[%clk 0:03:03]}  dxe5 {[%clk 0:03:00]} 8. Qxd8 {[%clk 0:03:04]}  Rxd8 {[%clk 0:03:01]} 9. Bg5 {[%clk 0:03:05]}  c6 {[%clk 0:02:58]} 10. Nxe5 {[%clk 0:03:05]}  Re8 {[%clk 0:02:58]} 11. O-O-O {[%clk 0:03:05]}  Na6 {[%clk 0:02:58]} 12. Rd6 {[%clk 0:03:03]}  Be6 {[%clk 0:02:39]} 13. f4 {[%clk 0:02:51]}  Nc5 {[%clk 0:02:36]} 14. Bf3 {[%clk 0:02:37]}  Nfd7 {[%clk 0:02:28]} 15. Nxd7 {[%clk 0:02:30]}  Nxd7 {[%clk 0:02:26]} 16. e5 {[%clk 0:02:27]}  h6 {[%clk 0:02:15]} 17. Bh4 {[%clk 0:02:27]}  g5 {[%clk 0:02:15]} 18. fxg5 {[%clk 0:02:22]}  Nxe5 {[%clk 0:02:05]} 19. Be2 {[%clk 0:01:37]}  hxg5 {[%clk 0:01:59]} 20. Bxg5 {[%clk 0:01:38]}  Bxc4 {[%clk 0:01:52]} 21. Bxc4 {[%clk 0:01:22]}  Nxc4 {[%clk 0:01:51]} 22. Rd7 {[%clk 0:01:22]}  Re5 {[%clk 0:01:35]} 23. h4 {[%clk 0:01:04]}  Rae8 {[%clk 0:01:32]} 24. Rxb7 {[%clk 0:00:56]}  Rc5 {[%clk 0:01:16]} 25. Rf1 {[%clk 0:00:43]}  Nxb2 {[%clk 0:00:51]} 26. Kxb2 {[%clk 0:00:42]}  Rxc3 {[%clk 0:00:43]} 27. Bf6 {[%clk 0:00:34]}  Rg3 {[%clk 0:00:32]} 28. Bxg7 {[%clk 0:00:31]}  Re2+ {[%clk 0:00:32]} 29. Kb1 {[%clk 0:00:17]}  Rxg7 {[%clk 0:00:32]} 30. g4 {[%clk 0:00:15]}  Rxg4 {[%clk 0:00:30]} 31. Rbxf7 {[%clk 0:00:15]}  Rb4+ {[%clk 0:00:27]} 32. Ka1 {[%clk 0:00:14]}  Ra4 {[%clk 0:00:22]} 33. Rf8+ {[%clk 0:00:13]}  Kg7 {[%clk 0:00:22]} 34. R8f7+ {[%clk 0:00:13]}  Kg6 {[%clk 0:00:22]} 35. R7f6+ {[%clk 0:00:14]}  Kh5 {[%clk 0:00:21]} 36. R6f5+ {[%clk 0:00:14]}  Kg4 {[%clk 0:00:20]} 37. Rc5 {[%clk 0:00:09]}  Rexa2+ {[%clk 0:00:18]} 38. Kb1 {[%clk 0:00:08]}  Ra1+ {[%clk 0:00:19]} 39. Kb2 {[%clk 0:00:08]}  Rxf1 {[%clk 0:00:20]} 40. Rg5+ {[%clk 0:00:09]}  Kxh4 {[%clk 0:00:19]} 41. Rc5 {[%clk 0:00:09]}  Rf3 {[%clk 0:00:19]} 42. Rxc6 {[%clk 0:00:08]}  Rg4 {[%clk 0:00:19]} 43. Rc2 {[%clk 0:00:08]}  Rfg3 {[%clk 0:00:19]} 44. Rc6 {[%clk 0:00:08]}  Rf4 {[%clk 0:00:18]} 45. Rh6+ {[%clk 0:00:08]}  Kg5 {[%clk 0:00:18]} 46. Ra6 {[%clk 0:00:09]}  Rf2+ {[%clk 0:00:18]} 0-1


[Site "https://www.chess.com"]